bitfinex/quotes_SOLUSD_20250915
["timestamp","ask_amount","ask_price","bid_price","bid_amount"]
[1757899579044,3.58332482,241.67,241.59,15.15728306]
[1757899579211,3.58332482,241.72,241.64,3.58332482]
[1757899579414,4.30332482,241.73,241.64,4.25332482]
[1757899579952,0.03,241.71,241.68,3.58332482]
[1757899580112,0.03,241.71,241.7,3.58332482]
[1757899580335,0.72,241.86,241.71,13.59559401]
[1757899580538,0.72,241.86,241.79,4.13582033]
[1757899580768,0.72,241.9,241.79,4.13582033]
[1757899580975,3.58332482,241.89,241.8,3.58332482]
[1757899581284,12.44167962,241.95,241.8,3.58332482]
[1757899581285,0.72,241.88,241.8,3.58332482]
[1757899581638,0.72,241.88,241.79,14.47537117]
[1757899581853,3.58332482,241.81,241.64,12.43858449]
[1757899582058,3.58332482,241.78,241.72,0.67]
[1757899582370,3.58332482,241.78,241.7,3.58332482]
[1757899582371,0.72,241.77,241.63,13.59559401]
[1757899582541,3.58332482,241.68,241.62,0.67]
[1757899582744,0.72,241.76,241.49,4.14095821]
[1757899582745,3.58332482,241.63,241.49,4.14095821]
[1757899582938,3.58332482,241.59,241.54,0.67]
[1757899583273,0.72,241.65,241.55,0.67]
[1757899583274,3.58332482,241.6,241.55,0.67]
[1757899583476,3.58332482,241.6,241.52,3.58332482]
[1757899583477,0.72,241.65,241.5,0.67]
[1757899583644,0.72,241.63,241.52,3.58332482]
[1757899583983,3.58332482,241.62,241.54,3.58332482]
[1757899584260,3.58332482,241.57,241.5,3.58332482]
[1757899584574,0.72,241.6,241.48,7.7843682]
[1757899584741,26.0,241.63,241.5,3.58332482]
[1757899584942,26.0,241.63,241.52,3.58332482]
[1757899584943,3.58332482,241.59,241.52,3.58332482]
[1757899585160,0.72,241.67,241.54,3.58332482]
[1757899585474,0.72,241.67,241.53,0.67]
[1757899585475,3.58332482,241.64,241.56,3.58332482]
[1757899585775,0.72,241.67,241.56,4.25332482]
[1757899585942,61.16,241.71,241.57,3.58332482]
[1757899586145,3.58332482,241.6,241.53,0.67]
[1757899586482,0.72,241.63,241.53,4.25332482]
[1757899586775,3.58332482,241.6,241.54,4.14010101]
[1757899587149,3.58332482,241.6,241.52,7.7236424]
[1757899587347,4.13877273,241.62,241.52,4.14031758]
[1757899587551,26.0,241.59,241.52,4.14031758]
[1757899587757,3.58332482,241.58,241.52,4.14031758]
[1757899588161,0.72,241.6,241.5,4.14068462]
[1757899588480,0.72,241.6,241.48,0.06]
[1757899588481,3.58332482,241.52,241.48,0.06]
[1757899588780,3.58332482,241.52,241.48,4.20106815]
[1757899589147,3.58332482,241.49,241.48,0.06]
[1757899590051,0.72,241.52,241.48,0.06]
[1757899590356,26.0,241.55,241.49,4.25332482]
[1757899590561,29.58332482,241.55,241.48,7.7843515]
[1757899590748,3.58332482,241.5,241.48,0.06]
[1757899590949,3.58332482,241.53,241.48,4.20108945]
[1757899591182,3.58332482,241.52,241.48,4.20108945]
[1757899591544,3.58332482,241.53,241.48,4.20108945]
[1757899591779,26.0,241.55,241.48,4.20108945]
[1757899591780,3.58332482,241.52,241.48,4.20108945]
[1757899592071,3.58332482,241.49,241.48,0.06]
[1757899592471,4.30332482,241.49,241.48,0.06]
[1757899592661,8.44428303,241.49,241.48,0.06]
[1757899592857,30.30332482,241.49,241.48,0.06]
[1757899593185,4.30332482,241.49,241.48,0.06]
[1757899593679,26.0,241.54,241.48,4.20108642]
[1757899593850,34.42,241.57,241.48,7.78441124]
[1757899594056,3.58332482,241.55,241.48,7.78441124]
[1757899594373,29.58332482,241.54,241.48,4.20108642]
[1757899594953,3.58332482,241.53,241.48,4.20108642]
[1757899595980,26.0,241.54,241.48,4.20108642]
[1757899596184,29.58332482,241.54,241.48,4.20108642]
[1757899596484,3.58332482,241.49,241.48,0.06]
[1757899596669,37.98332482,241.49,241.48,0.06]
[1757899596869,38.65332482,241.49,241.48,0.06]
[1757899597460,26.0,241.52,241.48,0.06]
[1757899597674,29.58332482,241.49,241.48,0.06]
[1757899597875,29.58332482,241.49,241.41,4.27332482]
[1757899597876,39.59559401,241.48,241.28,0.69]
[1757899598078,30.25332482,241.49,241.23,0.2]
[1757899598079,3.58332482,241.32,241.24,4.83511893]
[1757899598289,3.58332482,241.29,241.24,4.83511893]
[1757899598580,3.58332482,241.29,241.25,0.71]
[1757899598764,3.58332482,241.31,241.26,0.71]
[1757899599122,3.58332482,241.33,241.27,0.71]
[1757899599257,26.0,241.32,241.27,0.71]
[1757899599461,26.0,241.32,241.28,0.71]
[1757899599462,29.58332482,241.32,241.28,0.71]
[1757899599661,3.58332482,241.32,241.28,0.71]
[1757899600279,3.58332482,241.32,241.29,4.14439056]
[1757899600475,3.58332482,241.32,241.29,4.85439056]
[1757899600665,3.58332482,241.32,241.29,4.14439056]
[1757899600863,3.58332482,241.33,241.29,15.21536697]
[1757899601182,3.58332482,241.33,241.29,4.85439056]
[1757899601886,26.0,241.4,241.3,0.71]
[1757899602059,26.0,241.36,241.3,4.29332482]
[1757899602259,3.58332482,241.34,241.27,3.58332482]
[1757899602575,3.58332482,241.3,241.26,4.14490591]
[1757899602991,3.58332482,241.27,241.24,4.14511475]
[1757899603191,3.58332482,241.27,241.23,0.2]
[1757899603509,3.58332482,241.24,241.23,0.2]
[1757899604482,34.46,241.28,241.23,4.34534314]
[1757899604670,26.0,241.25,241.23,4.34540103]
[1757899604870,29.58332482,241.26,241.23,4.34540103]
[1757899605102,29.58332482,241.26,241.23,4.34539461]
[1757899605271,29.58332482,241.26,241.23,5.05539461]
[1757899605476,26.0,241.26,241.23,5.05539461]
[1757899605796,3.58332482,241.25,241.23,4.34539461]
[1757899605974,3.58332482,241.24,241.23,0.2]
[1757899606991,29.58332482,241.24,241.23,4.34536403]
[1757899607198,26.0,241.24,241.23,4.34536403]
[1757899607398,3.58332482,241.25,241.23,4.34536403]
[1757899607399,29.58332482,241.25,241.23,4.34536403]
[1757899608000,3.58332482,241.24,241.23,0.2]
[1757899608495,29.58332482,241.25,241.24,4.14524954]
[1757899609000,29.58332482,241.25,241.23,0.2]
[1757899609374,3.58332482,241.24,241.23,0.2]
[1757899610693,29.58332482,241.24,241.23,0.2]
[1757899610892,26.0,241.24,241.23,0.2]
[1757899611188,29.58332482,241.24,241.23,0.2]
[1757899611893,3.58332482,241.3,241.24,14.5083734]
[1757899612076,3.58332482,241.3,241.25,0.71]
[1757899612277,26.0,241.29,241.26,0.71]
[1757899612477,26.0,241.29,241.27,4.14473411]
[1757899612774,3.58332482,241.3,241.27,4.14473411]
[1757899613002,3.58332482,241.31,241.27,4.85473411]
[1757899613184,0.71,241.38,241.28,0.71]
[1757899613501,3.58332482,241.33,241.28,0.71]
[1757899613811,2.31255494,241.33,241.29,0.71]
[1757899614137,26.0,241.29,241.23,0.2]
[1757899614288,2.31255494,241.26,241.23,0.2]
[1757899614492,2.31255494,241.27,241.23,4.34529159]
[1757899614691,2.31255494,241.27,241.23,5.05529159]
[1757899614891,2.31255494,241.27,241.23,4.34529159]
[1757899615210,26.0,241.26,241.24,0.71]
[1757899615383,26.0,241.28,241.25,0.67]
[1757899615977,26.0,241.29,241.26,2.98255494]
[1757899616205,26.0,241.29,241.27,2.98255494]
[1757899616396,26.0,241.29,241.28,0.67]
[1757899616699,26.0,241.33,241.28,4.81456233]
[1757899617183,2.31255494,241.32,241.28,4.14456233]
[1757899617506,2.31255494,241.3,241.28,4.14456233]
[1757899617707,2.31255494,241.31,241.28,4.14456233]
[1757899618107,65.17337287,241.35,241.25,10.36267954]
[1757899618311,2.31255494,241.3,241.25,10.36267954]
[1757899618514,60.32,241.35,241.23,0.2]
[1757899618708,12.67057651,241.36,241.23,0.2]
[1757899618709,2.31255494,241.26,241.23,4.34525526]
[1757899619028,2.31255494,241.25,241.23,4.34525526]
[1757899619196,26.0,241.26,241.23,4.34525526]
[1757899619395,2.31255494,241.26,241.23,4.34525526]
[1757899619696,26.0,241.25,241.23,4.34525526]
[1757899620192,2.31255494,241.24,241.23,0.2]
[1757899620903,3.02255494,241.24,241.23,0.2]
[1757899621113,28.31255494,241.24,241.23,0.2]
[1757899621330,26.0,241.24,241.23,0.2]
[1757899621651,13.59559401,241.33,241.24,4.14524954]
[1757899621796,2.31255494,241.28,241.24,4.14524954]
[1757899622127,2.31255494,241.26,241.24,4.14524954]
[1757899622305,2.31255494,241.25,241.23,0.2]
[1757899622510,2.31255494,241.24,241.23,0.2]
[1757899624410,34.24,241.3,241.24,14.5083734]
[1757899624715,213.0,241.44,241.23,3.18255494]
[1757899624716,2.31255494,241.34,241.28,14.50596816]
[1757899625440,2.31255494,241.35,241.28,16.8185231]
[1757899625647,2.31255494,241.35,241.29,2.98255494]
[1757899625953,2.31255494,241.35,241.29,0.67]
[1757899626253,26.0,241.36,241.28,16.8185231]
[1757899626254,2.31255494,241.31,241.28,4.14456233]
[1757899626434,2.31255494,241.29,241.26,4.14482026]
[1757899626746,2.31255494,241.29,241.23,0.2]
[1757899626951,2.31255494,241.26,241.24,4.14508373]
[1757899627151,2.31255494,241.25,241.23,0.2]
[1757899627318,2.31255494,241.27,241.23,4.34532412]
[1757899627526,2.31255494,241.28,241.24,0.67]
[1757899627742,2.31255494,241.25,241.23,0.2]
[1757899627919,26.0,241.24,241.23,0.2]
[1757899628248,28.31255494,241.24,241.23,0.2]
[1757899628830,26.0,241.24,241.23,0.2]
[1757899629016,28.31255494,241.24,241.23,0.2]
[1757899630838,28.97255494,241.24,241.23,0.2]
[1757899631641,2.97255494,241.24,241.23,0.2]
[1757899632168,28.97255494,241.24,241.23,0.2]
[1757899632763,2.97255494,241.24,241.23,0.2]
[1757899632965,28.97255494,241.24,241.23,0.2]
[1757899633340,42.56814895,241.24,241.23,0.2]
[1757899633540,18.88070389,241.24,241.23,0.2]
[1757899634167,18.88070389,241.24,241.2,0.06]
[1757899634168,13.59559401,241.21,241.2,0.06]
[1757899634334,50.06814895,241.21,241.2,0.06]
[1757899634542,2.31255494,241.21,241.2,0.06]
[1757899634974,36.45255494,241.21,241.2,0.06]
[1757899635276,2.31255494,241.21,241.2,0.06]
[1757899636355,2.97255494,241.21,241.2,0.06]
[1757899636765,50.70814895,241.21,241.2,0.06]
[1757899638989,26.0,241.13,241.04,0.67]
[1757899639149,26.0,241.09,241.04,4.81856704]
[1757899639466,26.0,241.09,241.01,0.2]
[1757899639467,13.59559401,241.04,241.01,0.2]
[1757899639674,2.31255494,241.02,241.01,0.87]
[1757899639871,2.31255494,241.05,241.01,0.87]
[1757899640178,26.0,241.03,241.02,0.67]
[1757899640780,2.31255494,241.07,241.03,4.14886113]
[1757899640949,26.0,241.04,241.03,4.14886113]
[1757899641145,26.0,241.04,241.03,4.81886113]
[1757899641361,26.0,241.04,241.03,0.67]
[1757899641568,26.0,241.04,241.01,0.2]
[1757899641762,28.31255494,241.04,241.01,0.2]
[1757899642153,26.0,241.02,241.01,0.87]
[1757899642584,28.31255494,241.02,241.01,0.2]
[1757899643867,2.31255494,241.02,241.01,0.2]
[1757899644772,36.57255494,241.02,241.01,0.2]
[1757899646473,34.26,241.02,241.01,0.2]
[1757899646676,36.51255494,241.02,241.01,0.2]
[1757899646965,40.66158821,241.02,241.01,0.2]
[1757899647744,36.51255494,241.02,241.01,0.2]
[1757899648775,50.76814895,241.02,241.01,0.2]
[1757899649768,16.56814895,241.02,241.01,0.2]
[1757899649991,50.70814895,241.02,241.01,0.2]
[1757899651365,39.59559401,241.02,241.01,0.2]
[1757899651699,34.14,241.02,241.01,0.2]
[1757899651884,36.45255494,241.02,241.01,0.2]
[1757899652462,2.31255494,241.02,241.01,0.2]
[1757899652660,50.68814895,241.02,241.01,0.2]
[1757899652989,50.02814895,241.02,241.01,0.2]
[1757899653154,47.73559401,241.02,241.01,0.2]
[1757899653359,50.04814895,241.02,241.01,0.2]
[1757899653556,50.04814895,241.02,240.99,0.06]
[1757899653557,39.59559401,241.0,240.99,0.06]
[1757899653763,76.02814895,241.0,240.99,0.06]
[1757899654078,76.68814895,241.0,240.98,0.06]
[1757899654276,0.66,240.99,240.98,0.06]
[1757899654462,13.59559401,240.98,240.96,0.06]
[1757899654656,50.02814895,240.97,240.96,0.06]
[1757899655056,54.17804312,240.97,240.96,0.06]
[1757899655480,26.0,241.01,240.96,0.06]
[1757899655690,39.59559401,241.02,240.96,0.73]
[1757899655873,2.31255494,240.97,240.96,0.73]
[1757899656261,36.41255494,240.97,240.96,0.73]
[1757899656457,36.41255494,240.97,240.96,0.06]
[1757899657289,2.31255494,240.97,240.96,0.06]
[1757899657472,36.43255494,240.97,240.96,0.06]
[1757899657664,2.31255494,240.97,240.96,0.06]
[1757899657872,36.41255494,240.97,240.96,0.06]
[1757899658792,62.39255494,240.97,240.96,0.06]
[1757899658993,62.39255494,240.97,240.96,0.71]
[1757899659888,36.39255494,240.97,240.96,0.71]
[1757899660288,36.37255494,240.97,240.96,0.06]
[1757899661584,36.35255494,240.97,240.96,0.71]
[1757899661892,36.35255494,240.97,240.96,0.06]
[1757899662110,34.02,240.97,240.96,0.71]
[1757899662269,36.33255494,240.97,240.96,0.06]
[1757899664370,2.31255494,240.97,240.96,4.8600233]
[1757899664871,33.98,240.98,240.96,4.8600233]
[1757899665070,33.98,240.98,240.97,0.65]
[1757899665794,36.29255494,240.98,240.97,0.65]
[1757899666594,36.27255494,240.98,240.97,4.79989417]
[1757899667271,36.27255494,240.98,240.97,0.65]
[1757899668796,36.27255494,240.98,240.97,4.79989417]
[1757899668991,36.27255494,240.98,240.97,0.65]
[1757899669489,2.31255494,240.98,240.97,4.79989417]
[1757899669793,33.92,240.98,240.97,4.79989417]
[1757899670684,36.23255494,240.98,240.97,4.79989417]
[1757899670879,2.31255494,240.98,240.97,4.85989417]
[1757899671183,33.91,240.98,240.97,4.85989417]
[1757899672186,0.03,240.98,240.97,4.85989417]
[1757899672374,0.03,241.01,240.97,17.54718455]
[1757899672695,26.0,241.0,240.99,2.31255494]
[1757899672882,26.0,241.0,240.99,0.65]
[1757899673077,26.0,241.0,240.99,2.96255494]
[1757899673279,0.03,241.01,240.99,2.96255494]
[1757899673598,0.03,241.01,241.0,0.65]
[1757899674678,0.03,241.01,241.0,4.79937759]
[1757899675384,0.03,241.01,240.97,0.06]
[1757899675385,26.0,241.0,240.97,0.06]
[1757899675600,2.31255494,240.98,240.97,0.06]
[1757899675900,3.59609999,240.98,240.97,0.06]
[1757899676674,3.59609999,240.98,240.97,4.20989417]
[1757899677300,3.59609999,240.98,240.97,4.89989417]
[1757899677476,33.84,240.99,240.97,4.89989417]
[1757899677679,26.0,240.98,240.97,4.89989417]
[1757899678196,33.83,241.01,240.97,4.89989417]
[1757899678398,26.0,240.99,240.98,0.69]
[1757899678590,26.0,240.98,240.97,14.58462961]
[1757899679105,26.0,240.98,240.97,15.27462961]
[1757899679279,0.03,241.01,240.97,15.27462961]
[1757899679485,26.0,240.99,240.98,0.69]
[1757899680002,0.03,241.01,240.98,0.69]
[1757899680503,0.03,241.01,240.99,0.69]
[1757899680675,0.03,241.01,240.99,4.83941582]
[1757899680994,0.03,241.01,241.0,0.69]
[1757899681379,0.03,241.03,241.0,4.28609999]
[1757899681788,0.03,241.03,241.01,0.69]
[1757899682186,0.03,241.03,241.02,0.69]
[1757899682801,0.03,241.03,241.02,4.83903327]
[1757899683501,0.03,241.03,241.02,8.43513326]
[1757899683679,0.03,241.03,241.02,22.03072727]
[1757899684380,0.03,241.03,241.02,4.83903327]
[1757899685782,0.03,241.03,241.02,4.14903327]
[1757899685995,0.03,241.03,241.02,4.83903327]
[1757899686484,26.03,241.03,241.02,4.83903327]
[1757899687405,0.03,241.03,241.02,4.14903327]
[1757899687616,26.0,241.02,241.0,4.14930345]
[1757899687785,3.59609999,241.02,241.0,4.14930345]
[1757899688479,0.03,241.03,241.01,0.69]
[1757899688913,0.03,241.03,241.02,7.74513326]
[1757899689111,0.03,241.03,241.02,21.34072727]
[1757899689284,33.74,241.12,241.04,3.59609999]
[1757899689484,2.78319847,241.11,241.05,0.67]
[1757899689690,26.0,241.12,241.05,0.67]
[1757899689908,26.0,241.13,241.05,0.67]
[1757899690104,2.78332608,241.12,241.05,0.67]
[1757899690308,2.78209516,241.12,241.05,0.67]
[1757899690490,0.03,241.06,241.05,0.67]
[1757899690891,0.03,241.06,241.05,4.8185169]
[1757899693117,0.03,241.06,241.05,8.41461689]
[1757899695210,26.0,241.14,241.06,13.59559401]
[1757899695408,26.0,241.14,241.09,3.59609999]
[1757899695714,26.0,241.14,241.1,0.67]
[1757899695895,26.0,241.14,241.09,3.59609999]
[1757899695896,26.0,241.18,241.11,0.67]
[1757899696105,26.0,241.16,241.11,0.67]
[1757899696486,26.0,241.16,241.09,16.19609999]
[1757899696487,26.0,241.16,241.1,14.516798]
[1757899697185,3.59609999,241.15,241.1,14.516798]
[1757899697789,26.0,241.16,241.11,0.67]
[1757899697990,26.0,241.16,241.12,0.67]
[1757899698191,26.0,241.16,241.13,0.67]
[1757899698592,3.34932252,241.19,241.14,4.81696856]
[1757899698792,3.59609999,241.21,241.15,0.67]
[1757899699014,26.0,241.19,241.15,0.67]
[1757899699236,6.88331885,241.21,241.15,0.67]
[1757899699419,26.0,241.19,241.16,0.67]
[1757899699716,0.03,241.23,241.17,0.67]
[1757899700199,0.69,241.22,241.15,3.59609999]
[1757899700397,0.69,241.22,241.14,4.81696856]
[1757899700613,3.59609999,241.19,241.14,4.14696856]
[1757899700799,4.28609999,241.19,241.14,4.14696856]
[1757899701597,3.59609999,241.19,241.14,4.14696856]
[1757899701825,26.0,241.2,241.14,4.14696856]
[1757899701826,26.0,241.2,241.15,0.67]
[1757899702626,26.0,241.2,241.13,3.59609999]
[1757899702792,4.28609999,241.19,241.1,0.67]
[1757899703124,3.59609999,241.17,241.1,0.67]
[1757899703823,4.28609999,241.19,241.11,3.59609999]
[1757899704323,0.69,241.19,241.11,3.59609999]
[1757899704527,4.28609999,241.19,241.11,3.59609999]
[1757899705023,4.28609999,241.19,241.12,15.18559389]
[1757899705933,4.28609999,241.19,241.12,14.51559389]
[1757899706428,3.59609999,241.17,241.12,4.14731254]
[1757899706614,4.28609999,241.17,241.12,4.14731254]
[1757899706821,0.69,241.16,241.09,10.36937513]
[1757899706993,26.0,241.14,241.07,7.74427271]
[1757899707392,26.0,241.14,241.07,4.14817272]
[1757899707624,3.59609999,241.13,241.07,4.14817272]
[1757899707997,29.59609999,241.13,241.07,14.51860454]
[1757899708705,3.59609999,241.12,241.07,14.51860454]
[1757899708905,3.59609999,241.12,241.07,11.04043182]
[1757899709118,3.59609999,241.12,241.08,0.06]
[1757899709303,29.59609999,241.12,241.08,0.06]
[1757899710012,30.28609999,241.12,241.08,0.06]
[1757899710531,33.5,241.16,241.08,0.06]
[1757899710532,3.59609999,241.1,241.08,0.06]
[1757899711020,26.0,241.13,241.08,0.06]
[1757899711224,3.59609999,241.11,241.08,0.06]
[1757899711533,3.59609999,241.11,241.08,4.2079931]
[1757899712033,30.28609999,241.11,241.08,4.2079931]
[1757899712609,3.59609999,241.09,241.08,0.06]
[1757899712807,3.59609999,241.09,241.08,4.20800066]
[1757899713336,4.28609999,241.09,241.08,0.06]
[1757899714637,34.4339286,241.09,241.08,0.06]
[1757899714936,67.8939286,241.09,241.08,0.06]
[1757899715112,70.67137807,241.09,241.08,0.06]
[1757899715523,84.26697208,241.09,241.08,0.06]
[1757899716525,83.76697208,241.09,241.08,0.06]
[1757899716906,70.17137807,241.09,241.08,0.06]
[1757899717233,66.02354946,241.09,241.08,0.06]
[1757899718438,28.77744947,241.09,241.08,0.06]
[1757899718729,3.59609999,241.09,241.08,0.06]
[1757899719608,10.84435107,241.09,241.08,0.06]
[1757899720022,10.52435107,241.09,241.08,0.06]
[1757899720227,6.37652246,241.09,241.08,0.06]
[1757899720426,10.84435107,241.09,241.08,0.06]
[1757899721735,8.73861,241.09,241.08,0.06]
[1757899724213,28.78042247,241.09,241.08,0.06]
[1757899724533,4.27078139,241.09,241.08,4.89800066]
[1757899724736,30.27078139,241.09,241.08,4.89800066]
[1757899725628,30.27078139,241.09,241.08,0.06]
[1757899727319,67.73861,241.09,241.08,0.06]
[1757899727841,69.22896892,241.09,241.08,0.06]
[1757899728012,69.54896892,241.09,241.08,0.06]
[1757899728216,69.22896892,241.09,241.08,0.06]
[1757899728619,67.73861,241.09,241.08,0.06]
[1757899729341,30.27078139,241.09,241.08,0.06]
[1757899729539,63.57078139,241.09,241.08,0.06]
[1757899730631,67.71861,241.09,241.08,0.06]
[1757899731724,63.57078139,241.09,241.08,0.06]
[1757899731932,63.55078139,241.09,241.08,0.06]
[1757899732318,30.27078139,241.09,241.08,0.06]
[1757899732518,4.27078139,241.09,241.08,0.75]
[1757899733214,4.27078139,241.09,241.08,4.89800066]
[1757899733549,4.27078139,241.09,241.08,0.75]
[1757899735757,3.73394162,241.09,241.08,0.75]
[1757899736821,3.73394162,241.09,241.08,4.89800066]
[1757899737162,0.03,241.11,241.08,4.89800066]
[1757899737445,0.03,241.11,241.09,0.67]
[1757899737626,0.03,241.11,241.09,1.62351915]
[1757899738026,0.03,241.11,241.1,0.67]
[1757899738746,0.03,241.11,241.08,14.57800231]
[1757899738952,0.03,241.11,241.1,4.14765657]
[1757899739127,0.98351915,241.11,241.1,4.14765657]
[1757899740460,0.03,241.11,241.1,4.81765657]
[1757899740621,0.03,241.11,241.1,5.77117572]
[1757899742149,0.03,241.11,241.1,4.81765657]
[1757899743422,0.03,241.11,241.1,5.77117572]
[1757899744425,0.03,241.11,241.1,4.81765657]
[1757899745627,0.03,241.11,241.1,4.14765657]
[1757899747332,0.03,241.11,241.1,4.81765657]
[1757899748052,0.03,241.11,241.1,0.67]
[1757899748851,0.03,241.11,241.09,4.14782861]
[1757899749044,0.03,241.11,241.09,4.80782861]
[1757899750349,0.03,241.11,241.09,4.14774121]
[1757899750547,0.98351915,241.11,241.09,4.14774121]
[1757899750936,0.03,241.11,241.09,4.14774121]
[1757899751444,0.03,241.11,241.1,0.66]
[1757899752148,0.03,241.11,241.1,4.80765657]
[1757899754063,0.03,241.11,241.1,5.76117572]
[1757899755540,0.03,241.16,241.11,13.59559401]
[1757899755744,0.03,241.16,241.15,0.95351915]
[1757899756154,0.03,241.16,241.15,1.61351915]
[1757899756362,0.03,241.16,241.15,5.76031574]
[1757899756776,0.03,241.16,241.15,4.80679659]
[1757899756962,0.03,241.16,241.15,5.76031574]
[1757899758656,0.03,241.16,241.15,4.14679659]
[1757899760548,0.03,241.16,241.13,14.51492862]
[1757899760867,0.03,241.16,241.13,15.17492862]
[1757899761048,0.03,241.16,241.13,14.51492862]
[1757899761870,1.70351915,241.16,241.13,14.51492862]
[1757899762063,0.98351915,241.16,241.13,14.51492862]
[1757899762263,0.03,241.16,241.13,15.17492862]
[1757899763883,0.03,241.16,241.13,14.51492862]
[1757899764884,0.03,241.16,241.13,11.02778808]
[1757899766884,0.03,241.16,241.15,4.14679659]
[1757899767476,0.03,241.16,241.15,4.80679659]
[1757899767681,0.03,241.16,241.15,4.14679659]
[1757899769951,0.03,241.16,241.13,10.36778808]
[1757899769952,0.03,241.16,241.13,14.51492862]
[1757899770152,0.03,241.16,241.13,15.17492862]
[1757899771272,0.03,241.16,241.13,4.14714054]
[1757899771674,0.03,241.16,241.13,4.80714054]
[1757899774468,0.03,241.16,241.13,15.1749919]
[1757899775794,0.03,241.16,241.14,0.66]
[1757899776888,0.03,241.16,241.14,1.61351915]
[1757899777386,0.03,241.16,241.15,4.80679659]
[1757899782978,0.03,241.16,241.15,5.76031574]
[1757899783364,0.03,241.16,241.15,31.95590975]
[1757899784168,0.03,241.16,241.15,31.0023906]
[1757899784367,0.03,241.16,241.15,19.35590975]
[1757899788292,0.03,241.21,241.16,13.59559401]
[1757899788476,0.03,241.21,241.2,0.95351915]
[1757899788870,0.03,241.21,241.2,1.65351915]
[1757899789789,0.03,241.23,241.2,1.65351915]
[1757899789969,0.03,241.23,241.22,0.95351915]
[1757899790169,0.03,241.23,241.22,34.11351915]
[1757899790381,0.03,241.23,241.22,38.95911238]
[1757899794174,0.03,241.23,241.22,51.55911238]
[1757899794674,2.78724853,241.32,241.23,13.59559401]
[1757899794877,0.68,241.33,241.27,0.95351915]
[1757899795291,0.72,241.31,241.27,0.95351915]
[1757899795898,0.72,241.33,241.27,1.62351915]
[1757899796079,0.72,241.33,241.27,5.76825326]
[1757899796275,0.72,241.36,241.27,5.76825326]
[1757899797589,0.95351915,241.37,241.3,26.95351915]
[1757899797784,0.95351915,241.37,241.31,33.14]
[1757899797785,1.48609029,241.37,241.31,33.14]
[1757899798194,3.37991459,241.37,241.31,34.62609029]
[1757899798397,1.48609029,241.38,241.31,34.62609029]
[1757899799018,1.48609029,241.38,241.31,33.14]
[1757899799194,1.48609029,241.38,241.31,34.62609029]
[1757899799512,1.48609029,241.37,241.32,4.14387535]
[1757899799715,4.80053787,241.37,241.32,4.14387535]
[1757899799909,1.48609029,241.36,241.32,4.14387535]
[1757899800085,1.48609029,241.35,241.32,4.14387535]
[1757899800493,1.48609029,241.37,241.32,14.50356373]
[1757899800809,1.51609029,241.37,241.32,14.50356373]
[1757899801319,1.48609029,241.35,241.32,33.14]
[1757899801521,1.48609029,241.36,241.32,33.14]
[1757899802214,0.03,241.37,241.32,37.28384252]
[1757899802518,1.48609029,241.36,241.32,37.28384252]
[1757899802821,1.48609029,241.36,241.32,4.14384252]
[1757899803007,1.48609029,241.33,241.27,26.0]
[1757899803213,1.48609029,241.28,241.27,26.0]
[1757899803523,3.67193706,241.36,241.27,28.15609029]
[1757899803691,1.48609029,241.34,241.28,37.28456233]
[1757899803888,1.48609029,241.31,241.27,26.0]
[1757899804114,0.55,241.35,241.27,26.0]
[1757899804305,1.48609029,241.33,241.27,26.0]
[1757899804722,3.67193706,241.36,241.29,1.48609029]
[1757899804907,0.03,241.37,241.31,1.48609029]
[1757899805107,0.03,241.37,241.3,33.12]
[1757899805406,0.03,241.37,241.32,1.48609029]
[1757899805607,0.03,241.37,241.33,14.50296274]
[1757899805803,0.03,241.37,241.33,15.98905303]